[Event "44th Chess Olympiad Open 2022"]
[Site "Chennai"]
[Date "2022.08.05"]
[Round "7.60"]
[White "Liu, Yeh Yang"]
[Black "Fandi, Mazen."]
[Result "0-1"]
[WhiteElo "1994"]
[BlackElo "1715"]
[Annotator "NA"]
[PlyCount "110"]
[EventDate "2022.??.??"]
[TimeControl "60"]

1. e4 {[%emt 0:00:03]} d5 {[%emt 0:03:41]} 2. exd5 {[%emt 0:00:04]} Qxd5 {
[%emt 0:01:00]} 3. Nc3 {[%emt 0:00:03]} Qe5+ {[%emt 0:00:50]} 4. Nge2 {[%emt 0:
00:00]} Qa5 {[%emt 0:00:24]} 5. d4 {[%emt 0:00:45]} c6 {[%emt 0:00:44]} 6. Nf4
{[%emt 0:01:19]} Nf6 {[%emt 0:01:33]} 7. Bc4 {[%emt 0:00:54]} e6 {[%emt 0:00:
00]} 8. O-O {[%emt 0:00:13]} Bd6 {[%emt 0:00:21]} 9. Qd3 {[%emt 0:03:25]} O-O {
[%emt 0:01:09]} 10. Ne4 {[%emt 0:04:11]} Nxe4 {[%emt 0:01:59]} 11. Qxe4 {
[%emt 0:00:03]} Nd7 {[%emt 0:00:29]} 12. c3 {[%emt 0:03:20]} e5 {[%emt 0:04:55]
} 13. b4 {[%emt 0:05:07]} Qc7 {[%emt 0:03:07]} 14. dxe5 {[%emt 0:01:23]} Bxe5 {
[%emt 0:00:46]} 15. Qf3 {[%emt 0:02:39]} Nf6 {[%emt 0:02:14]} 16. h3 {[%emt 0:
00:00]} Bf5 {[%emt 0:04:36]} 17. Nh5 {[%emt 0:02:46]} Bg6 {[%emt 0:00:44]} 18.
Nxf6+ {[%emt 0:00:05]} Bxf6 {[%emt 0:00:22]} 19. Bf4 {[%emt 0:00:12]} Be5 {
[%emt 0:01:27]} 20. Bxe5 {[%emt 0:00:05]} Qxe5 {[%emt 0:00:10]} 21. Rfe1 {
[%emt 0:00:08]} Qc7 {[%emt 0:00:29]} 22. Re3 {[%emt 0:01:44]} Rfe8 {[%emt 0:00:
00]} 23. Rae1 {[%emt 0:00:10]} Rxe3 {[%emt 0:06:05]} 24. Qxe3 {[%emt 0:04:00]}
h6 {[%emt 0:00:25]} 25. Qe7 {[%emt 0:02:53]} Rc8 {[%emt 0:02:55]} 26. a4 {
[%emt 0:00:11]} b5 {[%emt 0:03:48]} 27. Bb3 {[%emt 0:00:02]} bxa4 {[%emt 0:00:
00]} 28. Bxa4 {[%emt 0:00:09]} c5 {[%emt 0:01:34]} 29. Qxc7 {[%emt 0:01:41]}
Rxc7 {[%emt 0:00:10]} 30. Re8+ {[%emt 0:00:04]} Kh7 {[%emt 0:00:37]} 31. b5 {
[%emt 0:00:03]} Bd3 {[%emt 0:00:53]} 32. Rd8 {[%emt 0:00:59]} Bc4 {[%emt 0:00:
00]} 33. Rb8 {[%emt 0:04:00]} g6 {[%emt 0:03:07]} 34. Kh2 {[%emt 0:00:14]} Kg7
{[%emt 0:01:14]} 35. Kg3 {[%emt 0:03:49]} Kf6 {[%emt 0:01:28]} 36. Kf4 {
[%emt 0:01:14]} g5+ {[%emt 0:03:05]} 37. Kg4 {[%emt 0:01:21]} Be6+ {[%emt 0:00:
00]} 38. Kf3 {[%emt 0:13:29]} Rb7 {[%emt 0:01:54]} 39. Rh8 {[%emt 0:11:52]} Kg7
{[%emt 0:01:10]} 40. Ra8 {[%emt 0:03:05]} Rxb5 {[%emt 0:02:44]} 41. Rxa7 {
[%emt 0:30:02]} Rb1 {[%emt 0:31:04]} 42. Ra5 {[%emt 0:11:45]} Ra1 {[%emt 0:00:
00]} 43. h4 {[%emt 0:01:03]} gxh4 {[%emt 0:01:00]} 44. Ke4 {[%emt 0:06:31]} Bb3
{[%emt 0:00:43]} 45. Bxb3 {[%emt 0:03:05]} Rxa5 {[%emt 0:00:11]} 46. Kd3 {
[%emt 0:02:54]} c4+ {[%emt 0:00:18]} 47. Bxc4 {[%emt 0:02:31]} Rg5 {[%emt 0:00:
00]} 48. Ke3 {[%emt 0:00:11]} Rxg2 {[%emt 0:00:14]} 49. Bd5 {[%emt 0:00:03]} h3
{[%emt 0:00:31]} 50. c4 {[%emt 0:01:25]} Rg5 {[%emt 0:00:10]} 51. Bb7 {[%emt 0:
00:00]} h2 {[%emt 0:00:17]} 52. Kd2 {[%emt 0:00:19]} Rg1 {[%emt 0:00:10]} 53.
c5 {[%emt 0:00:06]} h1=Q {[%emt 0:00:14]} 54. Bxh1 {[%emt 0:00:04]} Rxh1 {
[%emt 0:00:18]} 55. c6 {[%emt 0:00:04]} Rh5 {[%emt 0:00:10]} 0-1

[Event "44th Chess Olympiad Open 2022"]
[Site "Chennai"]
[Date "2022.08.05"]
[Round "7.61"]
[White "Rocha, Maximiliano"]
[Black "Anhwere, Bernard"]
[Result "1-0"]
[WhiteElo "2117"]
[BlackElo "1890"]
[Annotator "NA RC"]
[PlyCount "85"]
[EventDate "2022.??.??"]
[TimeControl "60"]

1. e4 {[%emt 0:00:04]} c5 {[%emt 0:00:45]} 2. Nf3 {[%emt 0:01:11]} d6 {[%emt 0:
00:00]} 3. Bc4 {[%emt 0:00:28]} e6 {[%emt 0:00:43]} 4. O-O {[%emt 0:00:06]} Nf6
{[%emt 0:00:19]} 5. d3 {[%emt 0:00:12]} Be7 {[%emt 0:00:22]} 6. Re1 {[%emt 0:
00:00]} O-O {[%emt 0:00:14]} 7. Bb3 {[%emt 0:00:04]} Nc6 {[%emt 0:03:17]} 8. c3
{[%emt 0:00:07]} e5 {[%emt 0:03:02]} 9. h3 {[%emt 0:04:21]} b5 {[%emt 0:06:00]}
10. Bg5 {[%emt 0:03:21]} Rb8 {[%emt 0:02:38]} 11. Nbd2 {[%emt 0:01:18]} a5 {
[%emt 0:00:30]} 12. Nf1 {[%emt 0:09:35]} a4 {[%emt 0:06:20]} 13. Bc2 {[%emt 0:
00:00]} Be6 {[%emt 0:00:55]} 14. d4 {[%emt 0:05:45]} exd4 {[%emt 0:03:24]} 15.
cxd4 {[%emt 0:00:07]} Nb4 {[%emt 0:03:12]} 16. Bb1 {[%emt 0:08:38]} d5 {
[%emt 0:10:45]} 17. Bxf6 {[%emt 0:20:28]} Bxf6 {[%emt 0:01:25]} 18. e5 {
[%emt 0:00:04]} Be7 {[%emt 0:00:50]} 19. dxc5 {[%emt 0:00:07]} Bxc5 {[%emt 0:
00:00]} 20. a3 {[%emt 0:01:19]} Na6 {[%emt 0:00:24]} 21. Ne3 {[%emt 0:00:29]}
Qd7 {[%emt 0:20:20]} 22. Ng5 {[%emt 0:16:11]} g6 {[%emt 0:03:57]} 23. Ba2 {
[%emt 0:08:16]} Rfd8 {[%emt 0:02:03]} 24. Qf3 {[%emt 0:00:41]} Be7 {[%emt 0:00:
00]} 25. Qf4 {[%emt 0:02:16]} Kg7 {[%emt 0:09:11]} 26. Rad1 {[%emt 0:02:18]}
Nc7 {[%emt 0:04:11]} 27. h4 {[%emt 0:03:50]} h6 {[%emt 0:02:37]} 28. Ne4 {
[%emt 0:01:41]} b4 {[%emt 0:04:06]} 29. Nf6 {[%emt 0:00:10]} Bxf6 {[%emt 0:00:
00]} 30. Qxf6+ {[%emt 0:02:41]} Kh7 {[%emt 0:00:32]} 31. h5 {[%emt 0:01:09]}
Qe8 {[%emt 0:01:28]} 32. Rc1 {[%emt 0:01:55]} Rd7 {[%emt 0:00:41]} 33. Bb1 {
[%emt 0:00:16]} Rb6 {[%emt 0:01:23]} 34. Rxc7 {[%emt 0:03:41]} Rxc7 {[%emt 0:
00:00]} 35. Nxd5 {[%emt 0:00:07]} Bxd5 {[%emt 0:00:38]} 36. Qxb6 {[%emt 0:00:
00]} Rc6 {[%emt 0:00:24]} 37. Qxb4 {[%emt 0:00:06]} Qe6 {[%emt 0:00:54]} 38.
hxg6+ {[%emt 0:02:43]} fxg6 {[%emt 0:00:02]} 39. Qxa4 {[%emt 0:01:52]} h5 {
[%emt 0:00:46]} 40. Qh4 {[%emt 0:00:21]} Kh6 {[%emt 0:00:53]} 41. f4 {[%emt 0:
00:00]} Kg7 {[%emt 0:04:57]} 42. Qg5 {[%emt 0:00:00]} Kf7 {[%emt 0:01:08]} 43.
f5 {[%emt 0:00:00]} 1-0

[Event "44th Chess Olympiad Open 2022"]
[Site "Chennai"]
[Date "2022.08.05"]
[Round "7.61"]
[White "Espinoza Solano, Jose Nahum"]
[Black "Adu Jnr, Lionel"]
[Result "1-0"]
[WhiteElo "2093"]
[BlackElo "1824"]
[Annotator "NA"]
[PlyCount "139"]
[EventDate "2022.??.??"]
[TimeControl "60"]

1. e4 {[%emt 0:00:04]} c6 {[%emt 0:00:08]} 2. d4 {[%emt 0:00:09]} d5 {[%emt 0:
00:00]} 3. exd5 {[%emt 0:00:08]} cxd5 {[%emt 0:00:01]} 4. c4 {[%emt 0:00:18]}
Nf6 {[%emt 0:00:12]} 5. Nc3 {[%emt 0:00:07]} Nc6 {[%emt 0:00:28]} 6. Nf3 {
[%emt 0:01:18]} Bg4 {[%emt 0:09:10]} 7. cxd5 {[%emt 0:00:40]} Nxd5 {[%emt 0:00:
00]} 8. Qb3 {[%emt 0:00:14]} Bxf3 {[%emt 0:00:35]} 9. gxf3 {[%emt 0:00:02]} e6
{[%emt 0:01:27]} 10. Qxb7 {[%emt 0:00:21]} Nxd4 {[%emt 0:00:44]} 11. Bb5+ {
[%emt 0:00:12]} Nxb5 {[%emt 0:00:37]} 12. Qc6+ {[%emt 0:00:07]} Ke7 {[%emt 0:
00:00]} 13. Qxb5 {[%emt 0:00:12]} Qd7 {[%emt 0:21:52]} 14. Nxd5+ {[%emt 0:00:
00]} Qxd5 {[%emt 0:01:26]} 15. Qxd5 {[%emt 0:00:07]} exd5 {[%emt 0:00:11]} 16.
O-O {[%emt 0:00:05]} Rd8 {[%emt 0:10:27]} 17. Rd1 {[%emt 0:02:04]} d4 {[%emt 0:
00:00]} 18. Bf4 {[%emt 0:02:14]} Ke6 {[%emt 0:14:35]} 19. Rac1 {[%emt 0:00:13]}
Rd5 {[%emt 0:02:50]} 20. Rc4 {[%emt 0:02:43]} Bc5 {[%emt 0:01:30]} 21. b4 {
[%emt 0:00:15]} Bb6 {[%emt 0:02:44]} 22. a4 {[%emt 0:01:38]} d3 {[%emt 0:01:52]
} 23. a5 {[%emt 0:01:44]} Bd4 {[%emt 0:00:15]} 24. Kf1 {[%emt 0:01:31]} Bf6 {
[%emt 0:11:02]} 25. Rc6+ {[%emt 0:02:52]} Kf5 {[%emt 0:00:29]} 26. Be3 {
[%emt 0:00:11]} Rb8 {[%emt 0:01:50]} 27. Bxa7 {[%emt 0:03:02]} Rxb4 {[%emt 0:
00:00]} 28. a6 {[%emt 0:00:03]} Ra4 {[%emt 0:05:56]} 29. Bc5 {[%emt 0:02:06]}
Ra2 {[%emt 0:02:10]} 30. a7 {[%emt 0:01:38]} Bd4 {[%emt 0:03:16]} 31. Rc8 {
[%emt 0:11:32]} Rxf2+ {[%emt 0:00:06]} 32. Kg1 {[%emt 0:01:18]} Rd2+ {[%emt 0:
00:00]} 33. Bxd4 {[%emt 0:00:41]} Rxd1+ {[%emt 0:00:07]} 34. Kf2 {[%emt 0:00:
00]} Rd2+ {[%emt 0:00:33]} 35. Ke3 {[%emt 0:00:33]} Ra2 {[%emt 0:01:44]} 36.
a8=Q {[%emt 0:00:12]} Rxa8 {[%emt 0:00:36]} 37. Rxa8 {[%emt 0:00:02]} d2 {
[%emt 0:00:49]} 38. Ra1 {[%emt 0:00:03]} f6 {[%emt 0:00:23]} 39. Rd1 {[%emt 0:
00:00]} g5 {[%emt 0:00:23]} 40. Rxd2 {[%emt 0:00:08]} h5 {[%emt 0:00:20]} 41.
Rc2 {[%emt 0:31:44]} Rd6 {[%emt 0:30:29]} 42. Rc5+ {[%emt 0:00:18]} Kg6 {
[%emt 0:00:04]} 43. Rb5 {[%emt 0:00:04]} Re6+ {[%emt 0:00:47]} 44. Kd3 {
[%emt 0:00:35]} Rc6 {[%emt 0:00:00]} 45. Rb6 {[%emt 0:00:00]} Rxb6 {[%emt 0:00:
00]} 46. Bxb6 {[%emt 0:00:00]} Kf5 {[%emt 0:00:00]} 47. Ke3 {[%emt 0:00:00]} g4
{[%emt 0:00:00]} 48. f4 {[%emt 0:00:00]} h4 {[%emt 0:00:00]} 49. Bc7 {[%emt 0:
00:00]} h3 {[%emt 0:00:00]} 50. Kf2 {[%emt 0:00:00]} Ke4 {[%emt 0:00:00]} 51.
Kg3 {[%emt 0:00:00]} f5 {[%emt 0:00:00]} 52. Kf2 {[%emt 0:00:00]} Kd3 {[%emt 0:
00:00]} 53. Bd8 {[%emt 0:00:00]} Kd2 {[%emt 0:00:00]} 54. Bh4 {[%emt 0:00:00]}
Kd3 {[%emt 0:00:00]} 55. Ke1 {[%emt 0:00:00]} Ke4 {[%emt 0:00:00]} 56. Bg3 {
[%emt 0:00:00]} Ke3 {[%emt 0:00:00]} 57. Kd1 {[%emt 0:00:00]} Kd3 {[%emt 0:00:
00]} 58. Kc1 {[%emt 0:00:00]} Kc3 {[%emt 0:00:00]} 59. Kb1 {[%emt 0:00:00]} Kd2
{[%emt 0:00:00]} 60. Kb2 {[%emt 0:00:00]} Kd3 {[%emt 0:00:00]} 61. Kb3 {
[%emt 0:00:00]} Kd4 {[%emt 0:00:15]} 62. Kb4 {[%emt 0:00:00]} Kd5 {[%emt 0:00:
00]} 63. Kb5 {[%emt 0:00:00]} Kd6 {[%emt 0:00:39]} 64. Kb6 {[%emt 0:00:00]} Kd7
{[%emt 0:07:03]} 65. Kc5 {[%emt 0:00:00]} Ke6 {[%emt 0:00:18]} 66. Kc6 {
[%emt 0:00:00]} Ke7 {[%emt 0:01:13]} 67. Kd5 {[%emt 0:00:00]} Kf6 {[%emt 0:00:
00]} 68. Kd6 {[%emt 0:00:00]} Kf7 {[%emt 0:01:07]} 69. Ke5 {[%emt 0:00:00]} Kg6
{[%emt 0:00:35]} 70. Ke6 {[%emt 0:00:00]} 1-0

[Event "44th Chess Olympiad Open 2022"]
[Site "Chennai"]
[Date "2022.08.05"]
[Round "7.61"]
[White "Hasford, John Kojo"]
[Black "Alfaro, William"]
[Result "1/2-1/2"]
[WhiteElo "1976"]
[BlackElo "2155"]
[Annotator "NA RC"]
[PlyCount "72"]
[EventDate "2022.??.??"]
[TimeControl "60"]

1. d4 {[%emt 0:01:22]} Nf6 {[%emt 0:00:11]} 2. Nf3 {[%emt 0:00:15]} g6 {
[%emt 0:00:14]} 3. Bf4 {[%emt 0:00:31]} d5 {[%emt 0:00:12]} 4. e3 {[%emt 0:00:
00]} Bg7 {[%emt 0:00:03]} 5. Be2 {[%emt 0:00:42]} c5 {[%emt 0:00:14]} 6. O-O {
[%emt 0:01:05]} O-O {[%emt 0:01:16]} 7. h3 {[%emt 0:00:10]} Qb6 {[%emt 0:00:04]
} 8. Qc1 {[%emt 0:01:11]} Nc6 {[%emt 0:00:29]} 9. c3 {[%emt 0:00:12]} Bf5 {
[%emt 0:00:09]} 10. Nbd2 {[%emt 0:02:59]} Rac8 {[%emt 0:04:25]} 11. dxc5 {
[%emt 0:00:43]} Qxc5 {[%emt 0:00:03]} 12. Nd4 {[%emt 0:00:33]} e5 {[%emt 0:00:
00]} 13. Nxf5 {[%emt 0:01:10]} exf4 {[%emt 0:00:06]} 14. Nb3 {[%emt 0:00:29]}
Qb6 {[%emt 0:00:29]} 15. Nxg7 {[%emt 0:00:42]} Kxg7 {[%emt 0:00:18]} 16. exf4 {
[%emt 0:01:15]} d4 {[%emt 0:00:02]} 17. Bf3 {[%emt 0:06:28]} dxc3 {[%emt 0:00:
00]} 18. bxc3 {[%emt 0:00:13]} Nb4 {[%emt 0:03:55]} 19. Qd2 {[%emt 0:02:54]}
Rfd8 {[%emt 0:00:06]} 20. Nd4 {[%emt 0:00:23]} Nc2 {[%emt 0:00:40]} 21. Qxc2 {
[%emt 0:01:27]} Rxd4 {[%emt 0:05:13]} 22. Rab1 {[%emt 0:01:09]} Qa5 {[%emt 0:
00:00]} 23. Rxb7 {[%emt 0:06:10]} Rxc3 {[%emt 0:01:10]} 24. Qe2 {[%emt 0:01:11]
} Rxf4 {[%emt 0:00:02]} 25. Qe7 {[%emt 0:01:01]} Ng8 {[%emt 0:00:01]} 26. Rxa7
{[%emt 0:01:13]} Qf5 {[%emt 0:02:33]} 27. Qd6 {[%emt 0:04:40]} Rcxf3 {[%emt 0:
00:00]} 28. gxf3 {[%emt 0:02:03]} Rxf3 {[%emt 0:01:11]} 29. Ra8 {[%emt 0:06:04]
} Qxh3 {[%emt 0:00:08]} 30. Qf8+ {[%emt 0:00:33]} Kf6 {[%emt 0:00:01]} 31. Ra6+
{[%emt 0:00:48]} Kg5 {[%emt 0:00:03]} 32. Ra5+ {[%emt 0:02:15]} f5 {[%emt 0:00:
00]} 33. Qd8+ {[%emt 0:01:01]} Kh5 {[%emt 0:10:53]} 34. Ra4 {[%emt 0:06:27]}
Nh6 {[%emt 0:00:11]} 35. Qc7 {[%emt 0:02:14]} f4 {[%emt 0:07:13]} 36. Rxf4 {
[%emt 0:11:04]} Rg3+ {[%emt 0:00:16]} 1/2-1/2

[Event "44th Chess Olympiad Open 2022"]
[Site "Chennai"]
[Date "2022.08.05"]
[Round "7.62"]
[White "Tsige, Addisalem Temesgen"]
[Black "Estur, Gavino Aguilar"]
[Result "1-0"]
[WhiteElo "2072"]
[BlackElo "1598"]
[Annotator "NA RC"]
[PlyCount "63"]
[EventDate "2022.??.??"]
[TimeControl "60"]

1. d4 {[%emt 0:00:30]} Nc6 {[%emt 0:00:44]} 2. Bf4 {[%emt 0:00:00]} e6 {
[%emt 0:01:01]} 3. e3 {[%emt 0:00:00]} Nf6 {[%emt 0:00:43]} 4. Nd2 {[%emt 0:00:
00]} Be7 {[%emt 0:02:00]} 5. c3 {[%emt 0:00:24]} a6 {[%emt 0:02:41]} 6. Bd3 {
[%emt 0:00:19]} b6 {[%emt 0:01:51]} 7. h3 {[%emt 0:01:31]} Bb7 {[%emt 0:00:21]}
8. Ngf3 {[%emt 0:00:09]} Bd6 {[%emt 0:03:45]} 9. Bxd6 {[%emt 0:01:11]} cxd6 {
[%emt 0:00:16]} 10. a4 {[%emt 0:01:47]} d5 {[%emt 0:02:23]} 11. O-O {[%emt 0:
00:00]} O-O {[%emt 0:00:32]} 12. Qe2 {[%emt 0:00:32]} d6 {[%emt 0:02:21]} 13.
e4 {[%emt 0:04:12]} dxe4 {[%emt 0:04:43]} 14. Nxe4 {[%emt 0:00:24]} Nxe4 {
[%emt 0:01:33]} 15. Qxe4 {[%emt 0:00:28]} g6 {[%emt 0:00:42]} 16. Qe3 {[%emt 0:
00:00]} Kg7 {[%emt 0:00:48]} 17. Rad1 {[%emt 0:00:44]} Re8 {[%emt 0:07:15]} 18.
Rfe1 {[%emt 0:00:35]} d5 {[%emt 0:04:24]} 19. Nh2 {[%emt 0:00:57]} h5 {[%emt 0:
00:00]} 20. Nf3 {[%emt 0:00:14]} Rb8 {[%emt 0:05:15]} 21. Ng5 {[%emt 0:00:44]}
Qf6 {[%emt 0:01:28]} 22. h4 {[%emt 0:00:24]} Na5 {[%emt 0:05:00]} 23. Qg3 {
[%emt 0:00:54]} Nc4 {[%emt 0:01:16]} 24. b3 {[%emt 0:00:30]} Nb2 {[%emt 0:00:
00]} 25. Rd2 {[%emt 0:03:14]} Nxd3 {[%emt 0:00:35]} 26. Rxd3 {[%emt 0:00:08]}
Qd8 {[%emt 0:12:23]} 27. Rf3 {[%emt 0:01:45]} Re7 {[%emt 0:00:56]} 28. Rxf7+ {
[%emt 0:00:15]} Rxf7 {[%emt 0:01:15]} 29. Nxe6+ {[%emt 0:00:11]} Kh7 {[%emt 0:
00:00]} 30. Nxd8 {[%emt 0:00:35]} Rxd8 {[%emt 0:00:07]} 31. Re6 {[%emt 0:00:25]
} Rg7 {[%emt 0:00:56]} 32. Rxg6 {[%emt 0:01:00]} 1-0

[Event "44th Chess Olympiad Open 2022"]
[Site "Chennai"]
[Date "2022.08.05"]
[Round "7.62"]
[White "Mafnas, Peter"]
[Black "Badene, Habtamu Bayu"]
[Result "0-1"]
[WhiteElo "2039"]
[BlackElo "2011"]
[Annotator "NA RC"]
[PlyCount "134"]
[EventDate "2022.??.??"]
[TimeControl "60"]

1. c4 {[%emt 0:00:42]} Nf6 {[%emt 0:00:12]} 2. b3 {[%emt 0:00:12]} e5 {[%emt 0:
00:00]} 3. Bb2 {[%emt 0:00:26]} Nc6 {[%emt 0:00:30]} 4. e3 {[%emt 0:01:23]} d5
{[%emt 0:00:24]} 5. cxd5 {[%emt 0:00:42]} Nxd5 {[%emt 0:00:28]} 6. Nf3 {
[%emt 0:00:45]} e4 {[%emt 0:02:10]} 7. Nd4 {[%emt 0:00:24]} Ne5 {[%emt 0:01:16]
} 8. Nc3 {[%emt 0:11:14]} Nb4 {[%emt 0:03:49]} 9. Qb1 {[%emt 0:03:22]} Nbd3+ {
[%emt 0:01:50]} 10. Bxd3 {[%emt 0:00:26]} Nxd3+ {[%emt 0:00:17]} 11. Kf1 {
[%emt 0:00:00]} Qh4 {[%emt 0:01:35]} 12. Nd1 {[%emt 0:01:41]} Bg4 {[%emt 0:00:
00]} 13. Ne2 {[%emt 0:06:51]} O-O-O {[%emt 0:01:57]} 14. Bc3 {[%emt 0:02:59]}
Rd5 {[%emt 0:07:50]} 15. Ng3 {[%emt 0:08:32]} Bd6 {[%emt 0:03:12]} 16. Kg1 {
[%emt 0:05:16]} f5 {[%emt 0:09:10]} 17. Bxg7 {[%emt 0:05:01]} Rg8 {[%emt 0:00:
00]} 18. Nc3 {[%emt 0:02:28]} Nxf2 {[%emt 0:05:16]} 19. Nxd5 {[%emt 0:02:39]}
Nxh1 {[%emt 0:00:19]} 20. Bf6 {[%emt 0:01:52]} Qh6 {[%emt 0:02:25]} 21. Ne7+ {
[%emt 0:01:41]} Bxe7 {[%emt 0:02:09]} 22. Bxe7 {[%emt 0:01:12]} Nxg3 {[%emt 0:
00:00]} 23. hxg3 {[%emt 0:00:20]} Qe6 {[%emt 0:02:41]} 24. Bh4 {[%emt 0:04:22]}
Qd5 {[%emt 0:00:46]} 25. Qc2 {[%emt 0:10:25]} Rg6 {[%emt 0:06:44]} 26. Qc3 {
[%emt 0:04:02]} h5 {[%emt 0:03:24]} 27. Rc1 {[%emt 0:02:19]} c6 {[%emt 0:01:06]
} 28. Qh8+ {[%emt 0:05:14]} Rg8 {[%emt 0:02:47]} 29. Qf6 {[%emt 0:03:51]} Re8 {
[%emt 0:00:45]} 30. Bg5 {[%emt 0:01:00]} Qe6 {[%emt 0:02:00]} 31. Qd4 {[%emt 0:
00:00]} Kb8 {[%emt 0:04:06]} 32. Bf4+ {[%emt 0:00:37]} Ka8 {[%emt 0:00:23]} 33.
Rc5 {[%emt 0:00:34]} b6 {[%emt 0:02:48]} 34. Re5 {[%emt 0:03:31]} Qc8 {[%emt 0:
00:00]} 35. Rxe8 {[%emt 0:01:04]} Qxe8 {[%emt 0:00:04]} 36. Qd6 {[%emt 0:01:03]
} Be2 {[%emt 0:01:20]} 37. a4 {[%emt 0:00:37]} Bd1 {[%emt 0:01:10]} 38. Qb4 {
[%emt 0:01:13]} Qf7 {[%emt 0:01:22]} 39. Qc3 {[%emt 0:01:54]} Kb7 {[%emt 0:00:
00]} 40. b4 {[%emt 0:03:20]} Bxa4 {[%emt 0:00:33]} 41. d4 {[%emt 0:30:28]} exd3
{[%emt 0:31:32]} 42. Qxd3 {[%emt 0:00:10]} Qd5 {[%emt 0:04:17]} 43. Qc3 {
[%emt 0:01:59]} Bb3 {[%emt 0:04:34]} 44. Qg7+ {[%emt 0:01:35]} Qf7 {[%emt 0:00:
00]} 45. Qd4 {[%emt 0:00:46]} Bd5 {[%emt 0:00:27]} 46. Kf2 {[%emt 0:00:25]} Qe7
{[%emt 0:02:07]} 47. b5 {[%emt 0:00:00]} Qf7 {[%emt 0:00:00]} 48. bxc6+ {
[%emt 0:00:00]} Bxc6 {[%emt 0:00:00]} 49. Qh8 {[%emt 0:00:00]} Qd5 {[%emt 0:00:
00]} 50. Qg7+ {[%emt 0:00:00]} Ka6 {[%emt 0:00:00]} 51. Qa1+ {[%emt 0:00:00]}
Kb7 {[%emt 0:00:00]} 52. Qg7+ {[%emt 0:00:00]} Qd7 {[%emt 0:00:00]} 53. Qh8 {
[%emt 0:00:00]} Qd2+ {[%emt 0:00:00]} 54. Kf1 {[%emt 0:00:00]} Bxg2+ {[%emt 0:
00:00]} 55. Kg1 {[%emt 0:00:00]} Bd5 {[%emt 0:00:00]} 56. Qg7+ {[%emt 0:00:00]}
Ka6 {[%emt 0:00:00]} 57. Qa1+ {[%emt 0:00:00]} Qa2 {[%emt 0:00:00]} 58. Be5 {
[%emt 0:00:00]} Qxa1+ {[%emt 0:00:00]} 59. Bxa1 {[%emt 0:00:00]} Kb5 {[%emt 0:
00:00]} 60. Kf1 {[%emt 0:00:00]} a5 {[%emt 0:00:00]} 61. Ke2 {[%emt 0:00:00]}
Kc4 {[%emt 0:00:00]} 62. Bd4 {[%emt 0:00:00]} b5 {[%emt 0:00:00]} 63. Kd2 {
[%emt 0:00:00]} Kb3 {[%emt 0:00:00]} 64. Kc1 {[%emt 0:00:00]} Be4 {[%emt 0:00:
00]} 65. Be5 {[%emt 0:00:00]} b4 {[%emt 0:00:00]} 66. Bd4 {[%emt 0:00:00]} a4 {
[%emt 0:00:00]} 67. Be5 {[%emt 0:00:02]} Ka2 {[%emt 0:00:00]} 0-1

[Event "44th Chess Olympiad Open 2022"]
[Site "Chennai"]
[Date "2022.08.05"]
[Round "7.62"]
[White "Soriano, Rudolph P."]
[Black "Abera, Aydagnuhem Gezachew"]
[Result "1/2-1/2"]
[WhiteElo "1824"]
[BlackElo "2137"]
[Annotator "NA RC"]
[PlyCount "115"]
[EventDate "2022.??.??"]
[TimeControl "60"]

1. Nf3 {[%emt 0:00:12]} d5 {[%emt 0:00:17]} 2. d4 {[%emt 0:00:15]} c5 {[%emt 0:
00:00]} 3. c4 {[%emt 0:00:40]} dxc4 {[%emt 0:01:39]} 4. g3 {[%emt 0:00:31]}
cxd4 {[%emt 0:00:40]} 5. Bg2 {[%emt 0:00:21]} Nc6 {[%emt 0:00:42]} 6. Qa4 {
[%emt 0:00:25]} Qa5+ {[%emt 0:02:35]} 7. Qxa5 {[%emt 0:00:20]} Nxa5 {[%emt 0:
00:00]} 8. Nxd4 {[%emt 0:00:28]} Bd7 {[%emt 0:01:44]} 9. O-O {[%emt 0:01:04]}
e5 {[%emt 0:00:35]} 10. Nc2 {[%emt 0:02:09]} Nf6 {[%emt 0:00:44]} 11. Ne3 {
[%emt 0:00:20]} Bc5 {[%emt 0:03:17]} 12. Bd2 {[%emt 0:00:39]} Bxe3 {[%emt 0:00:
00]} 13. Bxe3 {[%emt 0:01:03]} Bc6 {[%emt 0:02:21]} 14. Na3 {[%emt 0:02:11]}
Bxg2 {[%emt 0:02:49]} 15. Kxg2 {[%emt 0:00:18]} Ne4 {[%emt 0:07:05]} 16. Rac1 {
[%emt 0:02:08]} b5 {[%emt 0:08:44]} 17. Nxb5 {[%emt 0:09:14]} Rb8 {[%emt 0:00:
00]} 18. Nc3 {[%emt 0:02:14]} Nxc3 {[%emt 0:02:05]} 19. bxc3 {[%emt 0:00:14]}
a6 {[%emt 0:01:58]} 20. Bc5 {[%emt 0:01:08]} Nb7 {[%emt 0:04:45]} 21. Rb1 {
[%emt 0:01:04]} Kd7 {[%emt 0:00:20]} 22. Ba7 {[%emt 0:00:26]} Kc6 {[%emt 0:00:
00]} 23. Bxb8 {[%emt 0:00:51]} Rxb8 {[%emt 0:00:03]} 24. Rb4 {[%emt 0:00:34]}
Rd8 {[%emt 0:01:14]} 25. Rxc4+ {[%emt 0:01:21]} Nc5 {[%emt 0:00:11]} 26. Rb1 {
[%emt 0:05:32]} f5 {[%emt 0:07:24]} 27. a4 {[%emt 0:05:18]} Rd2 {[%emt 0:02:51]
} 28. Kf1 {[%emt 0:00:12]} Ra2 {[%emt 0:02:44]} 29. Rb8 {[%emt 0:04:45]} Kd5 {
[%emt 0:00:52]} 30. Rh4 {[%emt 0:00:45]} h6 {[%emt 0:05:45]} 31. Rb6 {[%emt 0:
00:00]} e4 {[%emt 0:03:28]} 32. Rh5 {[%emt 0:03:31]} Rxa4 {[%emt 0:02:42]} 33.
Rxf5+ {[%emt 0:00:59]} Kc4 {[%emt 0:00:01]} 34. Rc6 {[%emt 0:01:35]} Ra1+ {
[%emt 0:00:56]} 35. Kg2 {[%emt 0:00:00]} Ra5 {[%emt 0:00:06]} 36. h4 {[%emt 0:
00:00]} Rb5 {[%emt 0:00:30]} 37. Rfxc5+ {[%emt 0:05:48]} Rxc5 {[%emt 0:00:26]}
38. Rxa6 {[%emt 0:00:10]} Kxc3 {[%emt 0:00:34]} 39. Rg6 {[%emt 0:00:23]} Rc7 {
[%emt 0:01:12]} 40. g4 {[%emt 0:00:13]} Kd2 {[%emt 0:01:35]} 41. e3 {[%emt 0:
00:00]} Ke2 {[%emt 0:33:39]} 42. Ra6 {[%emt 0:00:24]} Rf7 {[%emt 0:01:37]} 43.
Ra2+ {[%emt 0:00:24]} Ke1 {[%emt 0:04:26]} 44. Kg1 {[%emt 0:00:37]} Re7 {
[%emt 0:02:00]} 45. Ra5 {[%emt 0:00:59]} Ke2 {[%emt 0:03:37]} 46. Rf5 {[%emt 0:
00:00]} Re6 {[%emt 0:01:00]} 47. g5 {[%emt 0:02:21]} Re7 {[%emt 0:10:29]} 48.
Kg2 {[%emt 0:01:06]} g6 {[%emt 0:04:27]} 49. Rf6 {[%emt 0:03:29]} hxg5 {
[%emt 0:00:32]} 50. hxg5 {[%emt 0:02:07]} Re5 {[%emt 0:00:08]} 51. Rxg6 {
[%emt 0:01:13]} Rf5 {[%emt 0:00:05]} 52. Rf6 {[%emt 0:00:29]} Rxg5+ {[%emt 0:
00:00]} 53. Kh3 {[%emt 0:00:35]} Rg8 {[%emt 0:00:00]} 54. Rf4 {[%emt 0:00:00]}
Rg7 {[%emt 0:00:00]} 55. Kh2 {[%emt 0:00:00]} Rg8 {[%emt 0:00:00]} 56. Kh3 {
[%emt 0:00:00]} Rg7 {[%emt 0:00:00]} 57. Rxe4 {[%emt 0:00:00]} Kxf2 {[%emt 0:
00:00]} 58. Re8 {[%emt 0:00:00]} 1/2-1/2